[Event "95th Caplin Hastings Congress"]
[Site "Hastings"]
[Date "2020.01.02"]
[Round "6.38"]
[White "Terentiev, Sergei"]
[Black "Byrn, Carsten"]
[Result "1-0"]
[ECO "A16"]
[WhiteElo "2292"]
[BlackElo "1919"]
[Annotator "NA"]
[PlyCount "55"]
[EventDate "2019.12.28"]
[EventType "swiss"]
[EventCountry "ENG"]
[SourceTitle "playchess.com"]
[Source "ChessBase"]
[SourceQuality "1"]
[TimeControl "40/6600+30:3000+30"]

1. c4 {[%emt 0:09:39]} Nf6 {[%emt 0:09:40]} 2. Nf3 {[%emt 0:00:22]} g6 {[%emt 0:00:08]} 3. Nc3 {[%emt 0:00:21]} d5 {[%emt 0:00:07]} 4. cxd5 {[%emt 0:02:33]} Nxd5 {[%emt 0:00:47]} 5. h4 {[%emt 0:00:06]} h5 {[%emt 0:00:29]} (5... Nxc3 6. bxc3 Bg7 7. h5 c5 8. Rb1 b6 9. e4 O-O 10. hxg6 hxg6 11. d4 Bb7 12. Ng5 cxd4 13. Qg4 {½-½ (59) Carlsen,M (2875)-Mamedyarov,S (2774) Zagreb 2019}) 6. Qb3 {[%emt 0:02:48] A16: English Opening: 1...Nf6 with ...d5} Nxc3 {[%emt 0:01:58]} (6... Nb6 $14) 7. Qxc3 $146 {[%emt 0:00:08]} ({Predecessor:} 7. dxc3 Bg7 8. Bf4 c6 9. e4 Qb6 10. Qa3 O-O 11. Bc4 Nd7 12. Ng5 e6 13. Rd1 {0-1 (42) Szily,J-Plater,K Miedzyzdroje 1952}) 7... Rg8 {[%emt 0:00:12]} 8. d4 {[%emt 0:00:38]} Nc6 {[%emt 0:03:45]} 9. a3 {[%emt 0:00:17]} Bg7 {[%emt 0:01:08]} 10. e3 {[%emt 0:00:09]} a6 {[%emt 0:01:57]} 11. Bc4 {[%emt 0:01:34]} Qd6 {[%emt 0:02:24]} 12. Ng5 {[%emt 0:03:55]} e6 {[%emt 0:02:03]} 13. Bd2 {[%emt 0:01:51]} b6 {[%emt 0:03:37]} 14. Rc1 {[%emt 0:02:41]} Bb7 {[%emt 0:00:45]} 15. Bd3 {[%emt 0:01:34]} Rc8 {[%emt 0:04:13]} 16. Be4 {[%emt 0:24:09]} Nd8 {[%emt 0:04:38]} 17. Bxb7 {[%emt 0:04:37]} Nxb7 {[%emt 0:00:05]} 18. Qc4 {[%emt 0:03:14]} Qd5 {[%emt 0:12:59]} 19. Qxa6 {[%emt 0:00:43]} Qxg2 {[%emt 0:00:33]} 20. Ke2 {[%emt 0:00:08]} Nd6 {[%emt 0:01:51]} 21. Nf3 {[%emt 0:00:50]} Qg4 {[%emt 0:04:52]} 22. Bb4 $18 {[%emt 0:01:02]} Kd7 {[%emt 0:04:02]} 23. Bxd6 {[%emt 0:00:47]} Kxd6 {[%emt 0:06:44]} 24. Qb7 {[%emt 0:00:25]} Kd7 {[%emt 0:14:42]} 25. Rc6 {[%emt 0:03:18]} Qf5 {[%emt 0:01:55]} 26. Rhc1 {[%emt 0:01:22]} Qb5+ {[%emt 0:01:51]} 27. Ke1 {[%emt 0:00:12]} Rge8 {[%emt 0:08:33]} 28. Rxc7+ {[%emt 0:01:41]} 1-0

[Event "95th Caplin Hastings Congress"]
[Site "Hastings"]
[Date "2020.01.02"]
[Round "6.39"]
[White "Ratsma, Midas"]
[Black "Jukes, Sam"]
[Result "1-0"]
[ECO "A28"]
[WhiteElo "2270"]
[BlackElo "1906"]
[Annotator "ChessBase"]
[PlyCount "51"]
[EventDate "2019.12.28"]
[EventType "swiss"]
[EventCountry "ENG"]
[SourceTitle "playchess.com"]
[Source "ChessBase"]
[SourceQuality "1"]
[TimeControl "40/6600+30:3000+30"]

1. c4 {[%emt 0:09:33]} e5 {[%emt 0:12:12]} 2. Nc3 {[%emt 0:00:05]} Nf6 {[%emt 0:00:05]} 3. Nf3 {[%emt 0:00:05]} Nc6 {[%emt 0:00:23]} 4. e4 {[%emt 0:00:10]} Be7 {[%emt 0:01:12]} 5. d4 {[%emt 0:01:48]} exd4 {[%emt 0:01:28]} 6. Nxd4 {[%emt 0:00:04]} d6 {[%emt 0:02:44]} 7. Be2 {[%emt 0:02:54]} Nxd4 {[%emt 0:03:50]} 8. Qxd4 {[%emt 0:00:05]} O-O {[%emt 0:00:16]} 9. O-O {[%emt 0:02:31]} Ng4 {[%emt 0:12:04]} 10. Nd5 {[%emt 0:03:48]} c5 {[%emt 0:05:28]} 11. Qd2 {[%emt 0:02:54]} f5 {[%emt 0:08:42]} 12. Bxg4 {[%emt 0:14:57]} fxg4 {[%emt 0:00:27]} 13. b3 {[%emt 0:00:04]} Be6 {[%emt 0:02:35]} 14. Bb2 {[%emt 0:00:37]} Bxd5 {[%emt 0:03:35]} 15. Qxd5+ {[%emt 0:00:29]} Rf7 {[%emt 0:00:11]} 16. f3 {[%emt 0:12:17]} Qd7 {[%emt 0:06:48]} 17. fxg4 {[%emt 0:09:25]} Raf8 {[%emt 0:00:34]} 18. Rxf7 {[%emt 0:08:11]} Rxf7 {[%emt 0:00:18]} 19. Rf1 {[%emt 0:00:38]} Bd8 {[%emt 0:02:27]} 20. Rxf7 {[%emt 0:02:46]} Qxf7 {[%emt 0:00:07]} 21. Qxd6 {[%emt 0:00:19]} Bc7 {[%emt 0:02:25]} 22. Qd5 {[%emt 0:00:20]} Kf8 {[%emt 0:00:47]} 23. Qxc5+ {[%emt 0:01:39]} Ke8 {[%emt 0:00:36]} 24. Qb5+ {[%emt 0:00:05]} Kf8 {[%emt 0:01:24]} 25. Ba3+ {[%emt 0:00:08]} Kg8 {[%emt 0:00:09]} 26. Qd5 {[%emt 0:00:05]} 1-0

[Event "95th Caplin Hastings Congress"]
[Site "Hastings"]
[Date "2020.01.02"]
[Round "6.40"]
[White "Bin-Suhayl, Ieysaa"]
[Black "Faulks, Nick"]
[Result "1-0"]
[ECO "A67"]
[WhiteElo "2187"]
[BlackElo "1900"]
[Annotator "NA"]
[PlyCount "53"]
[EventDate "2019.12.28"]
[EventType "swiss"]
[EventCountry "ENG"]
[SourceTitle "playchess.com"]
[Source "ChessBase"]
[SourceQuality "1"]
[TimeControl "40/6600+30:3000+30"]

1. d4 {[%emt 0:09:56]} Nf6 {[%emt 0:09:36]} 2. c4 {[%emt 0:00:05]} c5 {[%emt 0:00:04]} 3. d5 {[%emt 0:00:04]} e6 {[%emt 0:00:05]} 4. Nc3 {[%emt 0:00:03]} exd5 {[%emt 0:00:06]} 5. cxd5 {[%emt 0:00:03]} d6 {[%emt 0:00:07]} 6. e4 {[%emt 0:00:03]} g6 {[%emt 0:00:06]} 7. f4 {[%emt 0:00:02]} Bg7 {[%emt 0:00:06]} 8. Bb5+ {[%emt 0:00:04]} Nfd7 {[%emt 0:00:07]} 9. Be2 {[%emt 0:00:27]} Qh4+ {[%emt 0:02:56]} 10. g3 {[%emt 0:00:03]} Qd8 {[%emt 0:00:11]} 11. Nf3 {[%emt 0:00:04]} Nb6 {[%emt 0:01:29]} 12. O-O {[%emt 0:02:25]} O-O {[%emt 0:04:09]} 13. f5 {[%emt 0:35:13]} N8d7 {[%emt 0:22:36]} 14. Bf4 {[%emt 0:10:09]} Nf6 $14 {[%emt 0:10:35]} 15. fxg6 {[%emt 0:02:14]} fxg6 {[%emt 0:01:49]} 16. a4 {[%emt 0:01:38]} Bh3 {[%emt 0:06:02]} 17. Re1 {[%emt 0:01:19]} Nh5 {[%emt 0:07:24]} 18. Be3 {[%emt 0:02:09]} Bg4 {[%emt 0:08:09]} 19. Ng5 {[%emt 0:00:58]} Bxe2 {[%emt 0:01:57]} 20. Qxe2 {[%emt 0:00:21]} Qe7 {[%emt 0:02:13]} 21. Ne6 {[%emt 0:00:23]} Rf7 {[%emt 0:01:04]} 22. Rf1 {[%emt 0:03:12]} Nd7 {[%emt 0:07:47]} 23. Rxf7 {[%emt 0:00:04]} Qxf7 {[%emt 0:00:32]} 24. Rf1 {[%emt 0:00:03]} Qe7 {[%emt 0:00:22]} 25. Bg5 {[%emt 0:00:28]} Nhf6 {[%emt 0:05:46]} 26. Qe3 {[%emt 0:06:11]} Nf8 {[%emt 0:05:16]} 27. Nxg7 {[%emt 0:01:21]} 1-0

[Event "95th Caplin Hastings Congress"]
[Site "Hastings"]
[Date "2020.01.02"]
[Round "6.41"]
[White "Anderson, John"]
[Black "Ruane, Brendan J"]
[Result "1-0"]
[ECO "B00"]
[WhiteElo "2163"]
[BlackElo "1882"]
[Annotator "ChessBase"]
[PlyCount "88"]
[EventDate "2019.12.28"]
[EventType "swiss"]
[EventCountry "ENG"]
[SourceTitle "playchess.com"]
[Source "ChessBase"]
[SourceQuality "1"]
[TimeControl "40/6600+30:3000+30"]

1. e4 {[%emt 0:09:34]} b6 {[%emt 0:09:38]} 2. d4 {[%emt 0:00:09]} Bb7 {[%emt 0:00:05]} 3. Bd3 {[%emt 0:00:21]} g6 {[%emt 0:00:10]} 4. Be3 {[%emt 0:01:47]} Bg7 {[%emt 0:00:20]} 5. c3 {[%emt 0:00:11]} d6 {[%emt 0:00:23]} 6. Qe2 {[%emt 0:04:32]} a6 {[%emt 0:00:56]} 7. Nd2 {[%emt 0:01:02]} e6 {[%emt 0:02:04]} 8. f4 {[%emt 0:01:08]} Ne7 {[%emt 0:00:15]} 9. h4 {[%emt 0:00:12]} Nd7 {[%emt 0:01:20]} 10. Ngf3 {[%emt 0:01:11]} Nf6 {[%emt 0:02:38]} 11. O-O-O {[%emt 0:01:57]} d5 {[%emt 0:00:57]} 12. e5 {[%emt 0:05:37]} Ng4 {[%emt 0:00:59]} 13. h5 {[%emt 0:00:54]} Nf5 {[%emt 0:01:06]} 14. Bxf5 {[%emt 0:00:16]} gxf5 {[%emt 0:00:15]} 15. Bg1 {[%emt 0:02:24]} Bh6 {[%emt 0:01:29]} 16. g3 {[%emt 0:00:56]} Rg8 {[%emt 0:00:50]} 17. Nf1 {[%emt 0:01:36]} Qd7 {[%emt 0:00:31]} 18. N3h2 {[%emt 0:03:32]} O-O-O {[%emt 0:03:49]} 19. Nxg4 {[%emt 0:00:09]} Rxg4 {[%emt 0:00:07]} 20. Bf2 {[%emt 0:00:24]} Kb8 {[%emt 0:00:35]} 21. Rg1 {[%emt 0:04:57]} Rdg8 {[%emt 0:00:16]} 22. Ne3 {[%emt 0:00:15]} R4g7 {[%emt 0:00:12]} 23. Qf3 {[%emt 0:00:44]} Rg4 {[%emt 0:16:24]} 24. Nxg4 {[%emt 0:02:31]} fxg4 {[%emt 0:00:07]} 25. Qd3 {[%emt 0:01:01]} Rg7 {[%emt 0:04:51]} 26. Be3 {[%emt 0:01:52]} Ka7 {[%emt 0:04:02]} 27. Rd2 {[%emt 0:01:49]} Qe7 {[%emt 0:07:12]} 28. Rf2 {[%emt 0:01:03]} f5 {[%emt 0:00:15]} 29. exf6 {[%emt 0:01:08]} Qxf6 {[%emt 0:00:07]} 30. Re1 {[%emt 0:02:58]} Rf7 {[%emt 0:02:52]} 31. Bd2 {[%emt 0:02:02]} Bc6 {[%emt 0:00:27]} 32. Re5 {[%emt 0:00:51]} Bd7 {[%emt 0:00:42]} 33. Qe2 {[%emt 0:02:44]} Rg7 {[%emt 0:00:46]} 34. Qe1 {[%emt 0:01:23]} Rg8 {[%emt 0:00:58]} 35. Rfe2 {[%emt 0:01:27]} Qf7 {[%emt 0:04:10]} 36. f5 {[%emt 0:02:31]} Bxd2+ {[%emt 0:00:47]} 37. Kxd2 {[%emt 0:00:13]} Qxh5 {[%emt 0:02:24]} 38. fxe6 {[%emt 0:00:38]} Qh6+ {[%emt 0:00:05]} 39. Kd1 {[%emt 0:04:48]} Be8 {[%emt 0:00:14]} 40. e7 {[%emt 0:01:42]} Qg6 {[%emt 0:00:43]} 41. Kc1 {[%emt 0:50:27]} Kb7 {[%emt 0:51:34]} 42. b3 {[%emt 0:00:59]} Qc6 {[%emt 0:03:34]} 43. Kb2 {[%emt 0:00:18]} b5 {[%emt 0:01:06]} 44. Qh1 {[%emt 0:03:01]} Qf6 {[%emt 0:04:28]} 1-0

[Event "95th Caplin Hastings Congress"]
[Site "Hastings"]
[Date "2020.01.02"]
[Round "6.42"]
[White "Boino, Claudio"]
[Black "Metcalfe, Charlie P"]
[Result "1-0"]
[ECO "C10"]
[WhiteElo "2146"]
[BlackElo "1867"]
[Annotator "NA"]
[PlyCount "47"]
[EventDate "2019.12.28"]
[EventType "swiss"]
[EventCountry "ENG"]
[SourceTitle "playchess.com"]
[Source "ChessBase"]
[SourceQuality "1"]
[TimeControl "40/6600+30:3000+30"]

1. e4 {[%emt 0:11:02]} e6 {[%emt 0:09:36]} 2. d4 {[%emt 0:00:04]} d5 {[%emt 0:00:02]} 3. Nc3 {[%emt 0:00:09]} dxe4 {[%emt 0:00:04]} 4. Nxe4 {[%emt 0:00:09]} Nd7 {[%emt 0:00:01]} 5. Nf3 {[%emt 0:00:07]} Ngf6 {[%emt 0:00:06]} 6. Nxf6+ {[%emt 0:00:06]} Nxf6 {[%emt 0:00:04]} 7. Bd3 {[%emt 0:00:05]} c5 {[%emt 0:01:49]} 8. Be3 {[%emt 0:00:09]} cxd4 {[%emt 0:26:41]} 9. Bxd4 {[%emt 0:00:15]} Be7 {[%emt 0:00:08]} 10. Qe2 {[%emt 0:04:47]} O-O {[%emt 0:20:53]} 11. O-O {[%emt 0:00:59]} Bd7 {[%emt 0:18:48]} 12. Rfd1 {[%emt 0:03:09]} Qc7 {[%emt 0:05:42]} 13. Be5 {[%emt 0:04:40]} Qb6 {[%emt 0:02:01]} 14. Ng5 {[%emt 0:20:12]} h6 {[%emt 0:04:57]} 15. Ne4 {[%emt 0:16:47]} Nd5 {[%emt 0:01:40]} 16. c4 {[%emt 0:06:49]} Nb4 {[%emt 0:04:23]} 17. a3 {[%emt 0:00:21]} Nxd3 {[%emt 0:00:54]} 18. Rxd3 {[%emt 0:00:01]} Rfd8 {[%emt 0:02:06]} 19. Qg4 {[%emt 0:01:40]} g6 {[%emt 0:07:48]} 20. Nf6+ {[%emt 0:00:49]} Bxf6 {[%emt 0:00:02]} 21. Bxf6 {[%emt 0:00:07]} e5 {[%emt 0:00:06]} 22. Qh4 {[%emt 0:03:00]} e4 {[%emt 0:02:29]} 23. Rd5 {[%emt 0:06:12]} Bc6 {[%emt 0:01:40]} 24. Qxh6 {[%emt 0:00:26]} 1-0

[Event "95th Caplin Hastings Congress"]
[Site "Hastings"]
[Date "2020.01.02"]
[Round "6.43"]
[White "Ryzhkov, Vjacheslav"]
[Black "Miller, George"]
[Result "1-0"]
[ECO "B01"]
[WhiteElo "2134"]
[BlackElo "1845"]
[Annotator "NA"]
[PlyCount "46"]
[EventDate "2019.12.28"]
[EventType "swiss"]
[EventCountry "ENG"]
[SourceTitle "playchess.com"]
[Source "ChessBase"]
[SourceQuality "1"]
[TimeControl "40/6600+30:3000+30"]

1. e4 {[%emt 0:09:33]} d5 {[%emt 0:09:41]} 2. exd5 {[%emt 0:00:11]} Nf6 {[%emt 0:00:06]} 3. Nf3 {[%emt 0:00:20]} Qxd5 {[%emt 0:02:21]} 4. d4 {[%emt 0:00:41]} Bg4 {[%emt 0:00:22]} 5. Be2 {[%emt 0:00:51]} Nc6 {[%emt 0:00:33]} 6. c4 {[%emt 0:00:32]} Qh5 {[%emt 0:02:08]} 7. Be3 {[%emt 0:01:25]} O-O-O {[%emt 0:01:12]} 8. Qa4 {[%emt 0:02:26]} e5 {[%emt 0:12:29]} 9. d5 {[%emt 0:06:09]} e4 {[%emt 0:24:49]} 10. dxc6 {[%emt 0:04:21]} exf3 {[%emt 0:00:15]} 11. cxb7+ {[%emt 0:03:43]} Kxb7 {[%emt 0:00:14]} 12. Qxa7+ {[%emt 0:05:37]} Kc8 {[%emt 0:06:21]} 13. Qa6+ {[%emt 0:14:27]} Kd7 {[%emt 0:00:57]} 14. gxf3 {[%emt 0:05:16]} Bxf3 {[%emt 0:04:45]} 15. Nc3 {[%emt 0:01:23]} Bxe2 {[%emt 0:01:41]} 16. Qa4+ {[%emt 0:01:05]} Ke6 {[%emt 0:01:44]} 17. Nxe2 {[%emt 0:01:01]} Qe5 {[%emt 0:09:38]} 18. O-O {[%emt 0:11:20]} Ng4 {[%emt 0:13:04]} 19. Bf4 {[%emt 0:01:24]} Qh5 {[%emt 0:12:30]} 20. Rfe1 {[%emt 0:04:38]} Kf6 {[%emt 0:01:01]} 21. Qc6+ {[%emt 0:09:01]} Bd6 {[%emt 0:03:29]} 22. Qf3 {[%emt 0:02:06]} Qf5 {[%emt 0:00:28]} 23. Ng3 {[%emt 0:05:21]} Bf8 {[%emt 0:05:33]} 1-0

[Event "95th Caplin Hastings Congress"]
[Site "Hastings"]
[Date "2020.01.02"]
[Round "6.44"]
[White "Patrick, Chaski"]
[Black "Drastik, Penelope"]
[Result "0-1"]
[ECO "B70"]
[WhiteElo "2131"]
[BlackElo "1821"]
[Annotator "ChessBase"]
[PlyCount "46"]
[EventDate "2019.12.28"]
[EventType "swiss"]
[EventCountry "ENG"]
[SourceTitle "playchess.com"]
[Source "ChessBase"]
[SourceQuality "1"]
[TimeControl "40/6600+30:3000+30"]

1. e4 {[%emt 0:09:32]} c5 {[%emt 0:09:32]} 2. Nf3 {[%emt 0:00:06]} d6 {[%emt 0:00:02]} 3. d4 {[%emt 0:00:05]} cxd4 {[%emt 0:00:03]} 4. Nxd4 {[%emt 0:00:05]} Nf6 {[%emt 0:00:03]} 5. Nc3 {[%emt 0:00:05]} g6 {[%emt 0:00:03]} 6. Be2 {[%emt 0:01:38]} Bg7 {[%emt 0:00:04]} 7. g4 {[%emt 0:02:28]} Nc6 {[%emt 0:07:56]} 8. Nxc6 {[%emt 0:01:44]} bxc6 {[%emt 0:06:17]} 9. g5 {[%emt 0:00:08]} Nd7 {[%emt 0:00:30]} 10. h4 {[%emt 0:00:24]} Qa5 {[%emt 0:08:39]} 11. Bd2 {[%emt 0:03:32]} Rb8 {[%emt 0:01:08]} 12. Rb1 {[%emt 0:06:00]} O-O {[%emt 0:08:02]} 13. h5 {[%emt 0:03:01]} Qc5 {[%emt 0:02:33]} 14. Be3 {[%emt 0:08:07]} Bxc3+ {[%emt 0:07:14]} 15. bxc3 {[%emt 0:00:05]} Rxb1 {[%emt 0:00:09]} 16. Qxb1 {[%emt 0:00:10]} Qxc3+ {[%emt 0:00:05]} 17. Kf1 {[%emt 0:00:32]} Nc5 {[%emt 0:01:20]} 18. Rh4 {[%emt 0:02:53]} f6 {[%emt 0:06:51]} 19. hxg6 {[%emt 0:03:48]} fxg5 {[%emt 0:01:35]} 20. gxh7+ {[%emt 0:00:21]} Kh8 {[%emt 0:00:10]} 21. Bxc5 {[%emt 0:19:02]} gxh4 {[%emt 0:00:45]} 22. Bxa7 {[%emt 0:00:58]} Bh3+ {[%emt 0:00:26]} 23. Kg1 {[%emt 0:00:06]} Qg7+ {[%emt 0:00:04]} 0-1

[Event "95th Caplin Hastings Congress"]
[Site "Hastings"]
[Date "2020.01.02"]
[Round "6.45"]
[White "Hutchinson, Paul A"]
[Black "Damodaran, Patrick"]
[Result "1-0"]
[ECO "D05"]
[WhiteElo "2112"]
[BlackElo "1388"]
[Annotator "NA"]
[PlyCount "58"]
[EventDate "2019.12.28"]
[EventType "swiss"]
[EventCountry "ENG"]
[SourceTitle "playchess.com"]
[Source "ChessBase"]
[SourceQuality "1"]
[TimeControl "40/6600+30:3000+30"]

1. d4 {[%emt 0:09:32]} Nf6 {[%emt 0:21:00]} 2. Nf3 {[%emt 0:00:01]} c5 {[%emt 0:00:35]} 3. c3 {[%emt 0:00:59]} d5 {[%emt 0:01:22]} 4. e3 {[%emt 0:00:36]} e6 {[%emt 0:09:00]} 5. Bd3 {[%emt 0:00:13]} c4 {[%emt 0:02:42]} 6. Bc2 {[%emt 0:00:11]} Bd6 {[%emt 0:05:55]} 7. Nbd2 {[%emt 0:00:29]} Nc6 {[%emt 0:02:27]} 8. e4 {[%emt 0:02:25]} Bc7 {[%emt 0:03:09]} 9. Qe2 {[%emt 0:04:51]} O-O {[%emt 0:03:10]} 10. O-O {[%emt 0:00:34]} Re8 {[%emt 0:00:34]} 11. Re1 {[%emt 0:01:10]} b5 {[%emt 0:07:47]} 12. b3 {[%emt 0:07:44]} a5 {[%emt 0:20:57]} 13. a4 {[%emt 0:06:56]} b4 {[%emt 0:08:33]} 14. e5 {[%emt 0:04:19]} bxc3 {[%emt 0:02:55]} 15. Nxc4 {[%emt 0:31:15]} dxc4 {[%emt 0:01:29]} 16. exf6 {[%emt 0:01:42]} cxb3 {[%emt 0:01:04]} 17. Bxh7+ {[%emt 0:13:02]} Kf8 {[%emt 0:03:29]} 18. Qe4 {[%emt 0:06:17]} b2 {[%emt 0:07:26]} 19. fxg7+ {[%emt 0:17:22]} Ke7 {[%emt 0:00:59]} 20. Bg5+ {[%emt 0:01:36]} f6 {[%emt 0:00:22]} 21. Rad1 {[%emt 0:01:08]} Ra6 {[%emt 0:04:37]} 22. Bxf6+ {[%emt 0:02:40]} Kxf6 {[%emt 0:00:55]} 23. Qg6+ {[%emt 0:00:05]} Ke7 {[%emt 0:00:47]} 24. g8=Q {[%emt 0:06:53]} Rxg8 {[%emt 0:00:00]} 25. Bxg8 {[%emt 0:00:00]} Nb4 {[%emt 0:00:05]} 26. Qf7+ {[%emt 0:00:00]} Kd6 {[%emt 0:00:30]} 27. Rxe6+ {[%emt 0:00:00]} Kd5 {[%emt 0:01:10]} 28. Rxa6+ {[%emt 0:00:00]} Ke4 {[%emt 0:00:41]} 29. Bh7+ {[%emt 0:00:00]} Bf5 {[%emt 0:00:54]} 1-0

[Event "95th Caplin Hastings Congress"]
[Site "Hastings"]
[Date "2020.01.02"]
[Round "6.46"]
[White "Wilson, Matthew R"]
[Black "White, Stuart A"]
[Result "0-1"]
[ECO "B51"]
[WhiteElo "1837"]
[BlackElo "2106"]
[Annotator "ChessBase"]
[PlyCount "90"]
[EventDate "2019.12.28"]
[EventType "swiss"]
[EventCountry "ENG"]
[SourceTitle "playchess.com"]
[Source "ChessBase"]
[SourceQuality "1"]
[TimeControl "40/6600+30:3000+30"]

1. e4 {[%emt 0:09:31]} c5 {[%emt 0:09:32]} 2. Nf3 {[%emt 0:00:04]} d6 {[%emt 0:00:05]} 3. Bb5+ {[%emt 0:00:04]} Nd7 {[%emt 0:00:04]} 4. c3 {[%emt 0:00:14]} Ngf6 {[%emt 0:00:19]} 5. Qe2 {[%emt 0:00:06]} a6 {[%emt 0:00:07]} 6. Ba4 {[%emt 0:00:04]} b5 {[%emt 0:00:04]} 7. Bc2 {[%emt 0:00:04]} Bb7 {[%emt 0:00:16]} 8. d4 {[%emt 0:00:52]} e6 {[%emt 0:00:36]} 9. O-O {[%emt 0:02:23]} Be7 {[%emt 0:00:10]} 10. Rd1 {[%emt 0:06:53]} Qb8 {[%emt 0:05:30]} 11. a4 {[%emt 0:01:48]} O-O {[%emt 0:03:35]} 12. Nbd2 {[%emt 0:23:15]} Rc8 {[%emt 0:06:20]} 13. e5 {[%emt 0:03:41]} Nd5 {[%emt 0:06:40]} 14. exd6 {[%emt 0:13:02]} Qxd6 {[%emt 0:09:56]} 15. Ne4 {[%emt 0:02:31]} Qc6 {[%emt 0:03:34]} 16. Ne5 {[%emt 0:03:44]} Nxe5 {[%emt 0:07:36]} 17. dxe5 {[%emt 0:01:13]} f5 {[%emt 0:01:19]} 18. exf6 {[%emt 0:03:11]} Nxf6 {[%emt 0:01:57]} 19. f3 {[%emt 0:05:57]} Rd8 {[%emt 0:04:07]} 20. Re1 {[%emt 0:04:38]} e5 {[%emt 0:01:53]} 21. Bg5 {[%emt 0:06:04]} c4 {[%emt 0:02:23]} 22. Kh1 {[%emt 0:03:50]} Qc7 {[%emt 0:05:13]} 23. Bxf6 {[%emt 0:01:50]} Bxf6 {[%emt 0:01:42]} 24. Rad1 {[%emt 0:07:08]} Rxd1 {[%emt 0:02:02]} 25. Nxf6+ {[%emt 0:00:43]} gxf6 {[%emt 0:00:15]} 26. Rxd1 {[%emt 0:00:37]} Rd8 {[%emt 0:03:18]} 27. Rxd8+ {[%emt 0:03:13]} Qxd8 {[%emt 0:00:03]} 28. axb5 {[%emt 0:00:20]} axb5 {[%emt 0:00:44]} 29. f4 {[%emt 0:02:56]} e4 {[%emt 0:04:21]} 30. Qg4+ {[%emt 0:03:16]} Kf8 {[%emt 0:07:50]} 31. Qh5 {[%emt 0:03:36]} Qe7 {[%emt 0:14:49]} 32. Kg1 {[%emt 0:03:38]} Bc6 {[%emt 0:03:46]} 33. h4 {[%emt 0:02:26]} Qa7+ {[%emt 0:01:55]} 34. Kh2 {[%emt 0:00:45]} Qe7 {[%emt 0:07:41]} 35. Kg1 {[%emt 0:00:56]} Qd6 {[%emt 0:01:07]} 36. Qf5 {[%emt 0:00:54]} Qe7 {[%emt 0:02:04]} 37. Qc8+ {[%emt 0:01:01]} Be8 {[%emt 0:01:25]} 38. Bd1 {[%emt 0:00:27]} Qa7+ {[%emt 0:01:54]} 39. Kh2 {[%emt 0:00:45]} Qf2 {[%emt 0:01:27]} 40. Kh3 {[%emt 0:01:08]} Qe3+ {[%emt 0:01:07]} 41. Kg4 {[%emt 0:13:26]} Qd3 {[%emt 0:03:37]} 42. Bc2 {[%emt 0:10:59]} Qxc2 {[%emt 0:02:39]} 43. Kf5 {[%emt 0:09:50]} e3+ {[%emt 0:03:47]} 44. Kxf6 {[%emt 0:01:02]} Qg6+ {[%emt 0:00:40]} 45. Ke5 {[%emt 0:00:03]} Qg7+ {[%emt 0:00:52]} 0-1

[Event "95th Caplin Hastings Congress"]
[Site "Hastings"]
[Date "2020.01.02"]
[Round "6.47"]
[White "Mineev, Sergey I."]
[Black "Rice, Chris B"]
[Result "1-0"]
[ECO "E73"]
[WhiteElo "1588"]
[BlackElo "2027"]
[Annotator "NA"]
[PlyCount "71"]
[EventDate "2019.12.28"]
[EventType "swiss"]
[EventCountry "ENG"]
[SourceTitle "playchess.com"]
[Source "ChessBase"]
[SourceQuality "1"]
[TimeControl "40/6600+30:3000+30"]

1. d4 {[%emt 0:09:33]} Nf6 {[%emt 0:09:53]} 2. c4 {[%emt 0:00:05]} g6 {[%emt 0:00:17]} 3. Nc3 {[%emt 0:00:14]} Bg7 {[%emt 0:00:09]} 4. e4 {[%emt 0:00:09]} d6 {[%emt 0:00:10]} 5. Be2 {[%emt 0:00:05]} O-O {[%emt 0:00:20]} 6. Be3 {[%emt 0:00:08]} e5 {[%emt 0:02:59]} 7. d5 {[%emt 0:00:35]} Nbd7 {[%emt 0:13:18]} 8. g4 {[%emt 0:01:01]} Nc5 {[%emt 0:16:46]} 9. f3 {[%emt 0:01:02]} Ne8 {[%emt 0:01:57]} 10. h4 {[%emt 0:07:24]} f5 {[%emt 0:03:35]} 11. g5 {[%emt 0:09:13]} Qe7 {[%emt 0:06:37]} 12. Qd2 {[%emt 0:04:02]} Bd7 {[%emt 0:12:37]} 13. O-O-O {[%emt 0:09:15]} Rf7 {[%emt 0:00:00]} 14. Kb1 {[%emt 0:10:33]} Bf8 {[%emt 0:05:11]} 15. Bf1 {[%emt 0:19:53]} b6 {[%emt 0:07:02]} 16. h5 {[%emt 0:02:40]} Ng7 {[%emt 0:04:48]} 17. hxg6 {[%emt 0:01:13]} hxg6 {[%emt 0:00:12]} 18. Qg2 {[%emt 0:07:57]} Nh5 {[%emt 0:04:58]} 19. Nge2 {[%emt 0:06:42]} Rh7 {[%emt 0:02:03]} 20. Nc1 {[%emt 0:03:03]} Bg7 {[%emt 0:04:54]} 21. Nd3 {[%emt 0:02:11]} fxe4 {[%emt 0:04:15]} 22. fxe4 {[%emt 0:04:21]} Rf8 {[%emt 0:06:49]} 23. Be2 {[%emt 0:03:57]} Nxd3 {[%emt 0:04:08]} 24. Bxd3 {[%emt 0:00:24]} Nf4 {[%emt 0:02:14]} 25. Bxf4 {[%emt 0:01:06]} Rxh1 {[%emt 0:00:55]} 26. Rxh1 {[%emt 0:00:26]} exf4 {[%emt 0:00:57]} 27. Nd1 {[%emt 0:03:00]} Qe5 {[%emt 0:01:04]} 28. Rg1 {[%emt 0:02:37]} Ba4 {[%emt 0:00:47]} 29. Bc2 {[%emt 0:01:49]} Bd7 {[%emt 0:01:06]} 30. Rf1 {[%emt 0:03:20]} a6 {[%emt 0:00:44]} 31. Rh1 {[%emt 0:01:24]} Qd4 {[%emt 0:01:52]} 32. Qh2 {[%emt 0:01:11]} Bg4 {[%emt 0:02:21]} 33. Qh7+ {[%emt 0:01:12]} Kf7 {[%emt 0:00:06]} 34. e5 {[%emt 0:00:01]} Bh5 {[%emt 0:01:10]} 35. Rxh5 {[%emt 0:00:28]} gxh5 {[%emt 0:00:18]} 36. Bg6+ {[%emt 0:00:40]} 1-0